[Event "Early-Titled-Tuesday-Blitz-March-19-2024"]
[Site "Chess.com"]
[Date "2024.03.19"]
[Round "8"]
[White "JosefineHeinemann"]
[Black "ajedrezsinlimites"]
[Result "1-0"]
[WhiteElo "2496"]
[BlackElo "2596"]
[TimeControl "180+1"]
[EndTime "9:25:31 PDT"]
[Termination "JosefineHeinemann won by resignation"]

1. e4 {[%clk 0:03:00.9]} 1... c6 {[%clk 0:02:59.9]} 2. d4 {[%clk 0:02:55.4]}
2... d5 {[%clk 0:03:00.8]} 3. e5 {[%clk 0:02:55.7]} 3... Bf5 {[%clk 0:03:00.2]}
4. Nf3 {[%clk 0:02:55.9]} 4... e6 {[%clk 0:03:00.3]} 5. Be2 {[%clk 0:02:56.3]}
5... h6 {[%clk 0:02:58.5]} 6. O-O {[%clk 0:02:55.5]} 6... Ne7 {[%clk 0:02:59.2]}
7. b3 {[%clk 0:02:55.6]} 7... Nd7 {[%clk 0:02:59.8]} 8. c4 {[%clk 0:02:55.9]}
8... g5 {[%clk 0:02:59.3]} 9. Nc3 {[%clk 0:02:56]} 9... Bg7 {[%clk 0:02:59.2]}
10. Be3 {[%clk 0:02:52.2]} 10... O-O {[%clk 0:02:58.3]} 11. Qd2 {[%clk
0:02:51.4]} 11... f6 {[%clk 0:02:58.3]} 12. exf6 {[%clk 0:02:51]} 12... Nxf6
{[%clk 0:02:59.2]} 13. Ne5 {[%clk 0:02:49.4]} 13... Ne4 {[%clk 0:02:58.5]} 14.
Nxe4 {[%clk 0:02:49.2]} 14... Bxe4 {[%clk 0:02:59.4]} 15. f4 {[%clk 0:02:40.8]}
15... Nf5 {[%clk 0:02:56.3]} 16. fxg5 {[%clk 0:02:37.8]} 16... Nxe3 {[%clk
0:02:56.1]} 17. Qxe3 {[%clk 0:02:38]} 17... Qxg5 {[%clk 0:02:55.1]} 18. Qxg5
{[%clk 0:02:27.1]} 18... hxg5 {[%clk 0:02:56]} 19. Bg4 {[%clk 0:02:27.2]} 19...
Bf5 {[%clk 0:02:53.5]} 20. Bxf5 {[%clk 0:02:26.9]} 20... Rxf5 {[%clk 0:02:50.1]}
21. Rxf5 {[%clk 0:02:27]} 21... exf5 {[%clk 0:02:50.4]} 22. cxd5 {[%clk
0:02:27.6]} 22... cxd5 {[%clk 0:02:49.4]} 23. Rc1 {[%clk 0:02:27]} 23... Bxe5
{[%clk 0:02:41.8]} 24. dxe5 {[%clk 0:02:27.2]} 24... Re8 {[%clk 0:02:42.3]} 25.
Rc7 {[%clk 0:02:26.4]} 25... b6 {[%clk 0:02:39.9]} 26. Rxa7 {[%clk 0:02:24.1]}
26... Rxe5 {[%clk 0:02:40.6]} 27. Rd7 {[%clk 0:02:24.2]} 27... Re2 {[%clk
0:02:20.3]} 28. Rxd5 {[%clk 0:02:22.9]} 28... f4 {[%clk 0:02:13.5]} 29. Rxg5+
{[%clk 0:02:22.2]} 29... Kf7 {[%clk 0:02:12.7]} 30. Rf5+ {[%clk 0:02:22.2]}
30... Ke6 {[%clk 0:02:11.5]} 31. Rxf4 {[%clk 0:02:22.9]} 31... Rxa2 {[%clk
0:02:11.4]} 32. Rb4 {[%clk 0:02:22.9]} 32... Ra6 {[%clk 0:02:11.7]} 33. h4
{[%clk 0:02:22.6]} 33... Kf5 {[%clk 0:02:12.6]} 34. Kh2 {[%clk 0:02:21.9]} 34...
Kg6 {[%clk 0:02:11.7]} 35. Kh3 {[%clk 0:02:22.2]} 35... Kh6 {[%clk 0:02:12]} 36.
g4 {[%clk 0:02:22.1]} 36... Kg6 {[%clk 0:02:12.9]} 37. Kg3 {[%clk 0:02:22.4]}
37... Kf6 {[%clk 0:02:12.9]} 38. Kf4 {[%clk 0:02:22]} 38... Kg6 {[%clk
0:02:12.9]} 39. Rb5 {[%clk 0:02:20.1]} 39... Kf6 {[%clk 0:02:12.7]} 40. h5
{[%clk 0:02:20.3]} 40... Kg7 {[%clk 0:02:12.8]} 41. g5 {[%clk 0:02:20.7]} 41...
Kh7 {[%clk 0:02:13.1]} 42. Kf5 {[%clk 0:02:21.1]} 42... Kg7 {[%clk 0:02:13.5]}
43. h6+ {[%clk 0:02:18.5]} 43... Kh7 {[%clk 0:02:13.4]} 44. Kf6 {[%clk
0:02:19.2]} 44... Ra1 {[%clk 0:02:06.4]} 45. Rxb6 {[%clk 0:02:18.7]} 45... Rf1+
{[%clk 0:02:06.4]} 46. Ke5 {[%clk 0:02:18.4]} 46... Re1+ {[%clk 0:02:06.3]} 47.
Kd6 {[%clk 0:02:15.8]} 47... Rg1 {[%clk 0:02:06.3]} 48. Rb5 {[%clk 0:02:16]}
48... Kg6 {[%clk 0:02:05.1]} 49. Kc6 {[%clk 0:02:15.8]} 1-0

[Event "Early-Titled-Tuesday-Blitz-March-19-2024"]
[Site "Chess.com"]
[Date "2024.03.19"]
[Round "8"]
[White "manitodeplomo"]
[Black "UNSTOPPABLE_LEGEND"]
[Result "1-0"]
[WhiteElo "2665"]
[BlackElo "2507"]
[TimeControl "180+1"]
[EndTime "9:25:35 PDT"]
[Termination "manitodeplomo won by resignation"]

1. d4 {[%clk 0:02:56.8]} 1... Nf6 {[%clk 0:02:59.7]} 2. c4 {[%clk 0:02:53.7]}
2... c6 {[%clk 0:02:59.1]} 3. Nf3 {[%clk 0:02:50.9]} 3... d5 {[%clk 0:03:00]} 4.
Nc3 {[%clk 0:02:50.9]} 4... e6 {[%clk 0:02:59.1]} 5. Bg5 {[%clk 0:02:47.5]} 5...
dxc4 {[%clk 0:02:56.4]} 6. e4 {[%clk 0:02:46.8]} 6... b5 {[%clk 0:02:57.1]} 7.
a4 {[%clk 0:02:44.9]} 7... b4 {[%clk 0:02:50.6]} 8. Nb1 {[%clk 0:02:39.8]} 8...
h6 {[%clk 0:02:45]} 9. Bxf6 {[%clk 0:02:38.1]} 9... Qxf6 {[%clk 0:02:45.9]} 10.
Bxc4 {[%clk 0:02:38]} 10... Qg6 {[%clk 0:02:42.9]} 11. Nbd2 {[%clk 0:02:19.8]}
11... Qxg2 {[%clk 0:02:40.9]} 12. Rg1 {[%clk 0:02:19.3]} 12... Qh3 {[%clk
0:02:41.1]} 13. Qc2 {[%clk 0:02:13.1]} 13... Be7 {[%clk 0:02:38.8]} 14. Rxg7
{[%clk 0:02:08.1]} 14... Nd7 {[%clk 0:02:34.4]} 15. Rg3 {[%clk 0:02:05.1]} 15...
Qh5 {[%clk 0:02:33.4]} 16. O-O-O {[%clk 0:02:03.4]} 16... Nb6 {[%clk 0:02:32.9]}
17. Ne5 {[%clk 0:01:52.6]} 17... Bb7 {[%clk 0:02:29.9]} 18. Ndf3 {[%clk
0:01:35.3]} 18... O-O-O {[%clk 0:02:22.6]} 19. Be2 {[%clk 0:01:29.3]} 19... Kb8
{[%clk 0:02:15.2]} 20. a5 {[%clk 0:01:17.9]} 20... Nd7 {[%clk 0:02:13.9]} 21.
Nxd7+ {[%clk 0:01:16.2]} 21... Rxd7 {[%clk 0:02:14.5]} 22. Ne5 {[%clk
0:01:16.6]} 1-0

[Event "Early-Titled-Tuesday-Blitz-March-19-2024"]
[Site "Chess.com"]
[Date "2024.03.19"]
[Round "8"]
[White "NelsonLinda"]
[Black "suyu28"]
[Result "0-1"]
[WhiteElo "2668"]
[BlackElo "2850"]
[TimeControl "180+1"]
[EndTime "9:25:40 PDT"]
[Termination "suyu28 won by resignation"]

1. d4 {[%clk 0:02:48]} 1... Nf6 {[%clk 0:02:59.4]} 2. Nf3 {[%clk 0:02:48.2]}
2... d5 {[%clk 0:02:58.7]} 3. Bg5 {[%clk 0:02:48.3]} 3... Ne4 {[%clk 0:02:57.9]}
4. Bh4 {[%clk 0:02:47.7]} 4... Bf5 {[%clk 0:02:57.6]} 5. e3 {[%clk 0:02:44.6]}
5... c6 {[%clk 0:02:57.9]} 6. c4 {[%clk 0:02:31.4]} 6... Qb6 {[%clk 0:02:57.2]}
7. Qb3 {[%clk 0:02:28.7]} 7... e6 {[%clk 0:02:56.7]} 8. Nc3 {[%clk 0:02:19.9]}
8... Nd7 {[%clk 0:02:54.3]} 9. Be2 {[%clk 0:02:07.6]} 9... Qxb3 {[%clk
0:02:50.7]} 10. axb3 {[%clk 0:02:08.5]} 10... Bb4 {[%clk 0:02:50.9]} 11. Rc1
{[%clk 0:02:07.5]} 11... Nxc3 {[%clk 0:02:51.5]} 12. bxc3 {[%clk 0:02:06.5]}
12... Ba3 {[%clk 0:02:52.2]} 13. Kd2 {[%clk 0:01:56.1]} 13... Bxc1+ {[%clk
0:02:50.9]} 14. Rxc1 {[%clk 0:01:57]} 14... O-O {[%clk 0:02:49.3]} 15. Ra1
{[%clk 0:01:56.3]} 15... c5 {[%clk 0:02:45]} 16. h3 {[%clk 0:01:21.7]} 16...
Rfc8 {[%clk 0:02:41.6]} 17. g4 {[%clk 0:01:12]} 17... Be4 {[%clk 0:02:40.4]} 18.
Bg3 {[%clk 0:01:12.4]} 18... h6 {[%clk 0:02:39.2]} 19. Ne5 {[%clk 0:01:06]}
19... Nxe5 {[%clk 0:02:38.2]} 20. Bxe5 {[%clk 0:01:06.9]} 20... cxd4 {[%clk
0:02:34.9]} 21. Bxd4 {[%clk 0:01:03.6]} 21... dxc4 {[%clk 0:02:33.5]} 22. Bxc4
{[%clk 0:01:03.5]} 22... a6 {[%clk 0:02:30.2]} 23. Be2 {[%clk 0:01:00.7]} 23...
Rd8 {[%clk 0:02:27.2]} 24. Kc1 {[%clk 0:01:00.2]} 24... Rac8 {[%clk 0:02:26.5]}
25. Kb2 {[%clk 0:01:00.3]} 25... e5 {[%clk 0:02:26]} 0-1

[Event "Early-Titled-Tuesday-Blitz-March-19-2024"]
[Site "Chess.com"]
[Date "2024.03.19"]
[Round "8"]
[White "IsaqueGoncalvesSanto"]
[Black "Kostukov_Alex"]
[Result "0-1"]
[WhiteElo "1872"]
[BlackElo "2239"]
[TimeControl "180+1"]
[EndTime "9:25:46 PDT"]
[Termination "Kostukov_Alex won by resignation"]

1. d4 {[%clk 0:03:00.9]} 1... g6 {[%clk 0:02:59.4]} 2. c4 {[%clk 0:03:00.2]}
2... Bg7 {[%clk 0:02:59.5]} 3. Nc3 {[%clk 0:03:00.8]} 3... d6 {[%clk 0:02:59.9]}
4. h4 {[%clk 0:03:00.6]} 4... e5 {[%clk 0:02:59.6]} 5. h5 {[%clk 0:02:58.6]}
5... exd4 {[%clk 0:02:59.1]} 6. Nb5 {[%clk 0:02:57.8]} 6... c5 {[%clk
0:02:53.4]} 7. hxg6 {[%clk 0:02:51.9]} 7... hxg6 {[%clk 0:02:53.5]} 8. Rxh8
{[%clk 0:02:50.6]} 8... Bxh8 {[%clk 0:02:54.4]} 9. Bf4 {[%clk 0:02:26.2]} 9...
Be5 {[%clk 0:02:53]} 10. Bd2 {[%clk 0:02:16.5]} 10... a6 {[%clk 0:02:52]} 11.
Na3 {[%clk 0:02:14.2]} 11... Nc6 {[%clk 0:02:52.1]} 12. Nf3 {[%clk 0:02:13.6]}
12... Bg7 {[%clk 0:02:51.8]} 13. Nc2 {[%clk 0:02:12.9]} 13... Nge7 {[%clk
0:02:50.5]} 14. Rb1 {[%clk 0:02:08.9]} 14... Bf5 {[%clk 0:02:48]} 15. Nh4 {[%clk
0:02:07.1]} 15... Be6 {[%clk 0:02:46.6]} 16. b3 {[%clk 0:01:59.4]} 16... d5
{[%clk 0:02:45.9]} 17. cxd5 {[%clk 0:01:56]} 17... Nxd5 {[%clk 0:02:46]} 18. Nf3
{[%clk 0:01:55]} 18... Rc8 {[%clk 0:02:33.8]} 19. Bg5 {[%clk 0:01:53.8]} 19...
Bf6 {[%clk 0:02:32]} 20. Bd2 {[%clk 0:01:50.7]} 20... b5 {[%clk 0:02:28.3]} 21.
e4 {[%clk 0:01:49.9]} 21... dxe3 {[%clk 0:02:27.3]} 22. Nxe3 {[%clk 0:01:49.6]}
22... Nc3 {[%clk 0:02:25.5]} 23. Bxc3 {[%clk 0:01:42.8]} 23... Bxc3+ {[%clk
0:02:25.3]} 24. Nd2 {[%clk 0:01:39.2]} 24... Nb4 {[%clk 0:02:20.7]} 25. a3
{[%clk 0:01:34.5]} 25... Nd3+ {[%clk 0:02:18.7]} 26. Bxd3 {[%clk 0:01:33.4]}
26... Qxd3 {[%clk 0:02:19.6]} 27. Qc2 {[%clk 0:01:33.1]} 27... Qxc2 {[%clk
0:02:17.1]} 28. Nxc2 {[%clk 0:01:32.8]} 28... Rd8 {[%clk 0:02:17.7]} 29. Rd1
{[%clk 0:01:13.4]} 29... Bxb3 {[%clk 0:02:16.7]} 30. Ne3 {[%clk 0:01:13.2]}
30... Bxd1 {[%clk 0:02:15]} 31. Nxd1 {[%clk 0:01:13]} 31... Bxd2+ {[%clk
0:02:14.4]} 32. Ke2 {[%clk 0:01:13.3]} 32... Ba5 {[%clk 0:02:13.7]} 0-1

[Event "Early-Titled-Tuesday-Blitz-March-19-2024"]
[Site "Chess.com"]
[Date "2024.03.19"]
[Round "8"]
[White "Adar_07"]
[Black "tetrix83"]
[Result "1-0"]
[WhiteElo "2835"]
[BlackElo "2605"]
[TimeControl "180+1"]
[EndTime "9:25:54 PDT"]
[Termination "Adar_07 won by resignation"]

1. d4 {[%clk 0:03:00.9]} 1... Nf6 {[%clk 0:02:56.5]} 2. Bf4 {[%clk 0:03:00.5]}
2... c5 {[%clk 0:02:52.9]} 3. d5 {[%clk 0:02:59]} 3... d6 {[%clk 0:02:48.4]} 4.
Nc3 {[%clk 0:02:56.8]} 4... a6 {[%clk 0:02:48.5]} 5. a4 {[%clk 0:02:54.3]} 5...
e5 {[%clk 0:02:48.1]} 6. dxe6 {[%clk 0:02:49.7]} 6... Bxe6 {[%clk 0:02:40.7]} 7.
e4 {[%clk 0:02:49.6]} 7... Nc6 {[%clk 0:02:40.4]} 8. Nf3 {[%clk 0:02:47.9]} 8...
Be7 {[%clk 0:02:41.3]} 9. Ng5 {[%clk 0:02:43.3]} 9... O-O {[%clk 0:02:42.2]} 10.
Nxe6 {[%clk 0:02:43.5]} 10... fxe6 {[%clk 0:02:39.8]} 11. Bc4 {[%clk 0:02:44.1]}
11... Qd7 {[%clk 0:01:56.2]} 12. O-O {[%clk 0:02:38.7]} 12... Nxe4 {[%clk
0:01:50.8]} 13. Nxe4 {[%clk 0:02:39.6]} 13... Rxf4 {[%clk 0:01:50.5]} 14. Nxc5
{[%clk 0:02:39.8]} 14... Qe8 {[%clk 0:01:42.9]} 15. Nxe6 {[%clk 0:02:31.3]}
15... Rxc4 {[%clk 0:01:36.8]} 16. Qd5 {[%clk 0:02:21.5]} 16... Rxc2 {[%clk
0:00:48.6]} 17. Ng5+ {[%clk 0:02:14.1]} 17... Kh8 {[%clk 0:00:44.6]} 18. Nf7+
{[%clk 0:02:14.1]} 1-0

[Event "Early-Titled-Tuesday-Blitz-March-19-2024"]
[Site "Chess.com"]
[Date "2024.03.19"]
[Round "8"]
[White "Elnaz_Kaliakhmet"]
[Black "Zhigalko_Sergei"]
[Result "0-1"]
[WhiteElo "2548"]
[BlackElo "2860"]
[TimeControl "180+1"]
[EndTime "9:26:04 PDT"]
[Termination "Zhigalko_Sergei won by resignation"]

1. d4 {[%clk 0:03:00.9]} 1... Nf6 {[%clk 0:02:59.9]} 2. c4 {[%clk 0:03:00.9]}
2... e6 {[%clk 0:03:00.3]} 3. Nf3 {[%clk 0:03:00.7]} 3... b6 {[%clk 0:03:00.4]}
4. g3 {[%clk 0:03:00.9]} 4... Ba6 {[%clk 0:03:00.7]} 5. Qa4 {[%clk 0:03:00.4]}
5... Bb7 {[%clk 0:03:00.9]} 6. Bg2 {[%clk 0:03:00.1]} 6... c5 {[%clk 0:03:01.4]}
7. dxc5 {[%clk 0:03:00]} 7... bxc5 {[%clk 0:02:59.8]} 8. O-O {[%clk 0:03:00.6]}
8... Be7 {[%clk 0:03:00.4]} 9. Nc3 {[%clk 0:03:01.1]} 9... O-O {[%clk
0:03:00.7]} 10. Rd1 {[%clk 0:03:01.7]} 10... Qb6 {[%clk 0:03:00.5]} 11. Bf4
{[%clk 0:03:00.5]} 11... Rd8 {[%clk 0:03:01]} 12. Rd2 {[%clk 0:02:54.5]} 12...
d6 {[%clk 0:02:54.4]} 13. Qb5 {[%clk 0:02:54.1]} 13... Qc7 {[%clk 0:02:53.2]}
14. Rad1 {[%clk 0:02:50]} 14... a6 {[%clk 0:02:53.2]} 15. Qb3 {[%clk 0:02:47.9]}
15... Nc6 {[%clk 0:02:52.6]} 16. Na4 {[%clk 0:02:25.7]} 16... Ne4 {[%clk
0:02:37.2]} 17. Rc2 {[%clk 0:02:20.2]} 17... Rab8 {[%clk 0:02:27.7]} 18. Nc3
{[%clk 0:02:00.7]} 18... Na5 {[%clk 0:02:17.4]} 19. Qa4 {[%clk 0:01:43.9]} 19...
Bc6 {[%clk 0:02:15.4]} 20. Qa3 {[%clk 0:01:44.1]} 20... Nxc4 {[%clk 0:02:09.2]}
21. Qxa6 {[%clk 0:01:43.6]} 21... Nxb2 {[%clk 0:02:03.9]} 22. Rb1 {[%clk
0:01:34.5]} 22... Ra8 {[%clk 0:01:57.3]} 23. Nb5 {[%clk 0:01:30.6]} 23... Qd7
{[%clk 0:01:57]} 24. Qb6 {[%clk 0:01:24.3]} 24... Na4 {[%clk 0:01:53.9]} 25. Qc7
{[%clk 0:01:06.3]} 25... Bxb5 {[%clk 0:01:54.1]} 0-1

[Event "Early-Titled-Tuesday-Blitz-March-19-2024"]
[Site "Chess.com"]
[Date "2024.03.19"]
[Round "8"]
[White "nicolasbatista3"]
[Black "GelmanAlexander"]
[Result "0-1"]
[WhiteElo "2476"]
[BlackElo "2685"]
[TimeControl "180+1"]
[EndTime "9:26:33 PDT"]
[Termination "GelmanAlexander won by checkmate"]

1. Nf3 {[%clk 0:03:00.5]} 1... c5 {[%clk 0:02:58.9]} 2. b3 {[%clk 0:03:00.9]}
2... e6 {[%clk 0:02:58.4]} 3. Bb2 {[%clk 0:03:01.2]} 3... d6 {[%clk 0:02:58.8]}
4. e3 {[%clk 0:03:01.6]} 4... a6 {[%clk 0:02:58.9]} 5. d4 {[%clk 0:03:01.4]}
5... Nd7 {[%clk 0:02:59.3]} 6. Nbd2 {[%clk 0:03:01.2]} 6... Ngf6 {[%clk
0:02:59.6]} 7. Bd3 {[%clk 0:03:01.1]} 7... b6 {[%clk 0:02:59.8]} 8. O-O {[%clk
0:03:01.1]} 8... Bb7 {[%clk 0:02:59.9]} 9. e4 {[%clk 0:02:54.8]} 9... cxd4
{[%clk 0:02:59.8]} 10. Bxd4 {[%clk 0:02:48.5]} 10... Be7 {[%clk 0:02:58.7]} 11.
Qe2 {[%clk 0:02:27.8]} 11... Qc7 {[%clk 0:02:56.3]} 12. e5 {[%clk 0:02:22.2]}
12... dxe5 {[%clk 0:02:56.3]} 13. Nxe5 {[%clk 0:02:22.3]} 13... O-O {[%clk
0:02:56.6]} 14. Ndf3 {[%clk 0:02:16]} 14... Nxe5 {[%clk 0:02:50.8]} 15. Nxe5
{[%clk 0:02:11.1]} 15... Rad8 {[%clk 0:02:39.8]} 16. Bb2 {[%clk 0:02:03.9]}
16... b5 {[%clk 0:02:40.2]} 17. Ng4 {[%clk 0:02:02.9]} 17... Nd5 {[%clk
0:02:26.1]} 18. Qe4 {[%clk 0:01:33.9]} 18... f5 {[%clk 0:02:25.3]} 19. Qxe6+
{[%clk 0:01:34]} 19... Kh8 {[%clk 0:02:24.6]} 20. Nh6 {[%clk 0:01:00.5]} 20...
Bf6 {[%clk 0:02:00.6]} 21. Qxf5 {[%clk 0:00:56.4]} 21... gxh6 {[%clk 0:01:51.9]}
22. Bxf6+ {[%clk 0:00:53]} 22... Rxf6 {[%clk 0:01:49.4]} 23. Qh5 {[%clk
0:00:49.7]} 23... Nf4 {[%clk 0:01:45.4]} 24. Qh4 {[%clk 0:00:48]} 24... Qg7
{[%clk 0:01:42.5]} 25. g3 {[%clk 0:00:44.2]} 25... Rxd3 {[%clk 0:01:40.5]} 26.
cxd3 {[%clk 0:00:45.1]} 26... Ne2# {[%clk 0:01:40.3]} 0-1

[Event "Early-Titled-Tuesday-Blitz-March-19-2024"]
[Site "Chess.com"]
[Date "2024.03.19"]
[Round "8"]
[White "The_Straightforward_Rook"]
[Black "Crazy_girl99"]
[Result "0-1"]
[WhiteElo "2421"]
[BlackElo "2599"]
[TimeControl "180+1"]
[EndTime "9:26:46 PDT"]
[Termination "Crazy_girl99 won by resignation"]

1. Nf3 {[%clk 0:03:00.9]} 1... Nf6 {[%clk 0:03:00]} 2. d4 {[%clk 0:02:57.1]}
2... d5 {[%clk 0:03:00.2]} 3. c4 {[%clk 0:02:55.8]} 3... e6 {[%clk 0:03:00.5]}
4. Bg5 {[%clk 0:02:53.5]} 4... Be7 {[%clk 0:03:00.1]} 5. e3 {[%clk 0:02:53.7]}
5... h6 {[%clk 0:02:59.7]} 6. Bxf6 {[%clk 0:02:53.3]} 6... Bxf6 {[%clk
0:02:59.7]} 7. Qc2 {[%clk 0:02:54.2]} 7... c6 {[%clk 0:02:59.6]} 8. Nc3 {[%clk
0:02:53.3]} 8... Nd7 {[%clk 0:03:00.3]} 9. e4 {[%clk 0:02:47.7]} 9... dxe4
{[%clk 0:03:00]} 10. Nxe4 {[%clk 0:02:48.6]} 10... Be7 {[%clk 0:03:00.3]} 11.
Bd3 {[%clk 0:02:47.9]} 11... b6 {[%clk 0:02:56.9]} 12. O-O-O {[%clk 0:02:43.6]}
12... Bb7 {[%clk 0:02:56]} 13. Kb1 {[%clk 0:02:42.7]} 13... Qc7 {[%clk
0:02:55.5]} 14. Rhe1 {[%clk 0:02:38.7]} 14... O-O-O {[%clk 0:02:55]} 15. Qc3
{[%clk 0:02:22]} 15... Kb8 {[%clk 0:02:41.8]} 16. Ne5 {[%clk 0:02:21.6]} 16...
Rhf8 {[%clk 0:02:27.4]} 17. f4 {[%clk 0:02:17.3]} 17... a5 {[%clk 0:02:25.8]}
18. g3 {[%clk 0:02:16.8]} 18... f5 {[%clk 0:01:44.7]} 19. Nd2 {[%clk 0:02:13.7]}
19... Bf6 {[%clk 0:01:44.6]} 20. Ndf3 {[%clk 0:02:00.7]} 20... Nxe5 {[%clk
0:01:38.2]} 21. Nxe5 {[%clk 0:01:56.6]} 21... Rfe8 {[%clk 0:01:33.6]} 22. Bc2
{[%clk 0:01:49.4]} 22... Be7 {[%clk 0:01:32.9]} 23. Ba4 {[%clk 0:01:41.9]} 23...
Bb4 {[%clk 0:01:31.9]} 24. Qe3 {[%clk 0:01:34.3]} 24... Bxe1 {[%clk 0:01:31.8]}
25. Rxe1 {[%clk 0:01:35.2]} 25... Re7 {[%clk 0:01:24.3]} 26. Qf3 {[%clk
0:01:23.7]} 26... b5 {[%clk 0:01:09.3]} 27. Bb3 {[%clk 0:01:18.5]} 27... Rxd4
{[%clk 0:01:09.1]} 28. Qe3 {[%clk 0:01:07.4]} 28... Re4 {[%clk 0:01:08.3]} 0-1

[Event "Early-Titled-Tuesday-Blitz-March-19-2024"]
[Site "Chess.com"]
[Date "2024.03.19"]
[Round "8"]
[White "Aradhya2000"]
[Black "Iball95"]
[Result "1-0"]
[WhiteElo "2733"]
[BlackElo "2874"]
[TimeControl "180+1"]
[EndTime "9:26:53 PDT"]
[Termination "Aradhya2000 won by resignation"]

1. d4 {[%clk 0:03:00.9]} 1... d5 {[%clk 0:02:59.9]} 2. c4 {[%clk 0:03:01.4]}
2... e6 {[%clk 0:03:00.2]} 3. Nc3 {[%clk 0:03:01.9]} 3... c5 {[%clk 0:03:01]} 4.
cxd5 {[%clk 0:03:02.1]} 4... cxd4 {[%clk 0:03:01.4]} 5. Qa4+ {[%clk 0:03:02.8]}
5... Bd7 {[%clk 0:03:01.7]} 6. Qxd4 {[%clk 0:03:03.4]} 6... exd5 {[%clk
0:03:02.4]} 7. Qxd5 {[%clk 0:03:02.7]} 7... Nf6 {[%clk 0:03:02.7]} 8. Qd1 {[%clk
0:03:03.4]} 8... Bc5 {[%clk 0:03:03.2]} 9. e3 {[%clk 0:03:03.9]} 9... O-O {[%clk
0:03:03.7]} 10. Be2 {[%clk 0:03:03.7]} 10... Qe7 {[%clk 0:03:04.4]} 11. Nf3
{[%clk 0:03:03.9]} 11... Rd8 {[%clk 0:03:05.3]} 12. O-O {[%clk 0:03:04.1]} 12...
Nc6 {[%clk 0:03:06]} 13. a3 {[%clk 0:03:04]} 13... Ne5 {[%clk 0:03:06.5]} 14.
Nd4 {[%clk 0:03:00.1]} 14... Nc6 {[%clk 0:03:06.5]} 15. Bf3 {[%clk 0:02:56.8]}
15... Bxd4 {[%clk 0:02:24.2]} 16. exd4 {[%clk 0:02:56.6]} 16... Bg4 {[%clk
0:02:24.6]} 17. Be3 {[%clk 0:02:00.3]} 17... Bxf3 {[%clk 0:02:21.7]} 18. Qxf3
{[%clk 0:02:00.9]} 18... Nxd4 {[%clk 0:02:21.7]} 19. Bxd4 {[%clk 0:02:00.9]}
19... Rxd4 {[%clk 0:02:22.6]} 20. Rfe1 {[%clk 0:02:01.4]} 20... Qd7 {[%clk
0:02:16.6]} 21. Re2 {[%clk 0:02:01.5]} 21... h5 {[%clk 0:02:11.7]} 22. Rae1
{[%clk 0:02:00.9]} 22... Rd3 {[%clk 0:01:54.1]} 23. Qf4 {[%clk 0:02:00.8]} 23...
Rd4 {[%clk 0:01:53.9]} 24. Qf3 {[%clk 0:01:57.4]} 24... Rd3 {[%clk 0:01:52.4]}
25. Qf4 {[%clk 0:01:57.6]} 25... Rd8 {[%clk 0:01:48.2]} 26. h3 {[%clk
0:01:48.3]} 26... Qd4 {[%clk 0:01:46.7]} 27. Qxd4 {[%clk 0:01:32.7]} 27... R3xd4
{[%clk 0:01:47.6]} 28. Nb5 {[%clk 0:01:32.9]} 28... R4d5 {[%clk 0:01:47.8]} 29.
Nc3 {[%clk 0:01:32.5]} 29... Rd2 {[%clk 0:01:45.8]} 30. g3 {[%clk 0:01:29.6]}
30... g6 {[%clk 0:01:43.1]} 31. Kg2 {[%clk 0:01:29.6]} 31... Kg7 {[%clk
0:01:42.5]} 32. Rxd2 {[%clk 0:01:24]} 32... Rxd2 {[%clk 0:01:43.4]} 33. Re2
{[%clk 0:01:24.7]} 33... Rd7 {[%clk 0:01:35.5]} 34. Rc2 {[%clk 0:01:22.8]} 34...
a6 {[%clk 0:01:35.5]} 35. Na4 {[%clk 0:01:22.4]} 35... b5 {[%clk 0:01:26.8]} 36.
Nc5 {[%clk 0:01:22.1]} 36... Rc7 {[%clk 0:01:25.6]} 37. Ne6+ {[%clk 0:01:21.8]}
1-0

[Event "Early-Titled-Tuesday-Blitz-March-19-2024"]
[Site "Chess.com"]
[Date "2024.03.19"]
[Round "8"]
[White "Kotlyar_K"]
[Black "Fjal"]
[Result "1-0"]
[WhiteElo "2613"]
[BlackElo "2317"]
[TimeControl "180+1"]
[EndTime "9:26:55 PDT"]
[Termination "Kotlyar_K won by resignation"]

1. e4 {[%clk 0:03:00.9]} 1... d6 {[%clk 0:02:54.4]} 2. d4 {[%clk 0:02:58.8]}
2... Nf6 {[%clk 0:02:55.3]} 3. Nc3 {[%clk 0:02:59]} 3... g6 {[%clk 0:02:55.3]}
4. f4 {[%clk 0:02:59]} 4... Bg7 {[%clk 0:02:54.7]} 5. Bd3 {[%clk 0:02:59.5]}
5... O-O {[%clk 0:02:53.7]} 6. Nf3 {[%clk 0:02:59.7]} 6... a5 {[%clk 0:02:53]}
7. O-O {[%clk 0:02:37.6]} 7... a4 {[%clk 0:02:53.3]} 8. Qe1 {[%clk 0:02:32]}
8... e6 {[%clk 0:02:52.8]} 9. Qh4 {[%clk 0:02:31.8]} 9... Nh5 {[%clk 0:02:51.8]}
10. Qf2 {[%clk 0:02:30.2]} 10... a3 {[%clk 0:02:49.1]} 11. b3 {[%clk 0:02:28.7]}
11... Nc6 {[%clk 0:02:49.1]} 12. Be3 {[%clk 0:02:28.6]} 12... f5 {[%clk
0:02:34.2]} 13. Rad1 {[%clk 0:02:17.2]} 13... fxe4 {[%clk 0:02:26.4]} 14. Bxe4
{[%clk 0:02:11.6]} 14... Nf6 {[%clk 0:02:27]} 15. Bd3 {[%clk 0:02:10.9]} 15...
Nb4 {[%clk 0:02:24]} 16. h3 {[%clk 0:01:53.9]} 16... b6 {[%clk 0:02:21]} 17.
Rfe1 {[%clk 0:01:52.5]} 17... Bb7 {[%clk 0:02:20.8]} 18. Bf1 {[%clk 0:01:52]}
18... Nfd5 {[%clk 0:02:16.9]} 19. Nxd5 {[%clk 0:01:48.2]} 19... exd5 {[%clk
0:02:17.8]} 20. c3 {[%clk 0:01:45.8]} 20... Nc6 {[%clk 0:02:14.6]} 21. Ng5
{[%clk 0:01:45.2]} 21... Bc8 {[%clk 0:02:13.7]} 22. Qf3 {[%clk 0:01:43]} 22...
Ne7 {[%clk 0:02:07.8]} 23. Bf2 {[%clk 0:01:33.9]} 23... c6 {[%clk 0:01:44.9]}
24. Ne6 {[%clk 0:01:29.8]} 24... Bxe6 {[%clk 0:01:40.6]} 25. Rxe6 {[%clk
0:01:30.6]} 25... Qd7 {[%clk 0:01:41.5]} 26. Rde1 {[%clk 0:01:30.7]} 26... Rae8
{[%clk 0:01:42.1]} 27. c4 {[%clk 0:01:28.1]} 27... dxc4 {[%clk 0:01:37.4]} 28.
bxc4 {[%clk 0:01:26]} 28... Nf5 {[%clk 0:01:37.9]} 29. d5 {[%clk 0:01:19.8]}
29... Nd4 {[%clk 0:01:31.9]} 30. Bxd4 {[%clk 0:01:17.5]} 30... Bxd4+ {[%clk
0:01:32.8]} 31. Kh1 {[%clk 0:01:17.5]} 31... Be5 {[%clk 0:01:24]} 32. Rxe8
{[%clk 0:01:15.8]} 32... Qxe8 {[%clk 0:01:23.6]} 33. dxc6 {[%clk 0:01:15.7]}
33... Rxf4 {[%clk 0:01:23.5]} 34. Qxf4 {[%clk 0:01:15.9]} 34... Qxc6 {[%clk
0:01:20.8]} 35. Qe4 {[%clk 0:01:14.3]} 1-0